Cogmind - Beta 14 @@@ ROGUE MODE // 2025.02.28 @ 18:23:26 Player: Krzychu Result: Destroyed by G-50 Soldier with Heavy Laser Performance ------------- Evolutions (2) 1000 Regions Visited (5) 1000 Robots Destroyed (24) 120 Value Destroyed (332) 332 Prototype IDs (12) 240 Alien Tech Used (0) 0 Bonus (1) 1 TOTAL SCORE: 2693 Bonus ------- Follower Combat Kills 159 Friendly Fire -158 Cogmind --------- Core Integrity 0/550 Matter 294/300 Energy 99/100 System Corruption 8% Temperature Cool (9) Movement Core (50) Location -8/Storage Parts ------- > --- POWER (1) -------- (None) > --- PROPULSION (4) --- (None) > --- UTILITY (4) ------ (None) > --- WEAPON (2) ------- (None) > --- INVENTORY (5) ---- Improved Light Armor Plating Decoy Drone Bay (7/16) Mining Laser Peak State ------------ > --- POWER ------------ Light Ion Engine > --- PROPULSION ------- Flight Unit Flight Unit Flight Unit > --- UTILITY ---------- ECM Suite Decoy Drone Bay > --- WEAPON ----------- Light Assault Rifle Mini Grenade Launcher > --- INVENTORY -------- (None) [Rating: 22] Favorites ----------- Power Light Ion Engine Engine Light Ion Engine Power Core Light Nuclear Core Propulsion Flight Unit Leg Aluminum Leg Wheel Armored Wheel Hover Unit Improved Hover Unit Flight Unit Flight Unit Utility Small Storage Unit Device Seismic Detector Storage Small Storage Unit Processor Visual Processing Unit Protection Improved Light Armor Plating Weapon Light Assault Rifle Energy Gun Small Laser Ballistic Gun Light Assault Rifle Launcher Mini Grenade Launcher Special Weapon Mining Laser Build | -11 -10 -10 -10 -8 -8 ------- Run | Yrd Mat Min Sub Mat Sto Slots Evolved 4 | . . . . 4 . Power . | . . . . . . Propulsion 2 | . . . . 2 . Utility 2 | . . . . 2 . Weapon . | . . . . . . Parts Attached 40 | 7 8 5 4 11 5 Power 4 | 1 1 . . 2 . Engine 3 | 1 1 . . 1 . Core 1 | . . . . 1 . Reactor . | . . . . . . Propulsion 9 | 2 4 . 1 2 . Treads . | . . . . . . Leg 2 | 2 . . . . . Wheel 2 | . 2 . . . . Hover 1 | . . . . 1 . Flight 4 | . 2 . 1 1 . Utility 14 | 2 . 4 1 5 2 Device 9 | 1 . 3 1 3 1 Storage 3 | 1 . 1 . . 1 Processor 1 | . . . . 1 . Hackware . | . . . . . . Protection 1 | . . . . 1 . Artifact . | . . . . . . Weapon 13 | 2 3 1 2 2 3 Energy Gun 3 | 2 . . . . 1 Energy Cannon . | . . . . . . Ballistic Gun 6 | . 3 . 1 1 1 Ballistic Cannon . | . . . . . . Launcher 2 | . . . 1 1 . Special Weapon 2 | . . 1 . . 1 Impact Weapon . | . . . . . . Slashing Weapon . | . . . . . . Piercing Weapon . | . . . . . . Special Melee Weapon . | . . . . . . Unidentified Prototypes 1 | . . 1 . . . Parts Lost 17 | . . . 3 8 6 Power 2 | . . . . 2 . Propulsion 5 | . . . 1 3 1 Utility 5 | . . . 1 1 3 Weapon 5 | . . . 1 2 2 Highest Loss Streak 6 | . . . 3 5 6 To Critical Strikes . | . . . . . . Average Slot Usage (%) 69 | . 95 83 65 54 37 Engine 3 | . 11 . . 7 . Wheel 2 | . 21 . . . . Flight 22 | . 3 28 28 23 . Device 9 | . 14 13 6 8 9 Storage 7 | . 14 14 5 . 6 Energy Gun 2 | . 15 . . . 1 Ballistic Gun 11 | . 10 14 14 8 3 Launcher 3 | . . . 8 2 . Special Weapon 3 | . . 12 1 . 2 Peak Build Rating 22 | 7 10 18 19 22 20 Average Rating 9 | 4 8 7 10 8 10 On Entrance 5 | . 7 5 8 6 7 Naked Turns 22 | . . . . . 22 Heaviest Build 16 | 12 12 16 16 7 14 Greatest Support 24 | 20 24 8 8 14 13 Greatest Overweight (x) 1 | . . 1 1 . 1 Average Overweight (x) . | . . . . . . Largest Inventory Capacity 8 | 8 8 8 8 5 5 Average Capacity 6 | 5 8 7 6 5 5 Most Carried 8 | 4 8 8 8 5 5 Average Carried 5 | 2 6 7 5 3 4 Final Capacity 8 | 8 8 8 5 5 5 Final Carried 8 | 3 6 8 5 5 4 Class Distribution -------------------- 53% | Mutant 46% | Scavenger-Mutant Dominant Class ---------------- Mutant | -10/Materials Scavenger-Mutant | -10/Mines Mutant | -10/Subcaves Scavenger-Mutant | -8/Materials Mutant | -8/Storage Resources | -11 -10 -10 -10 -8 -8 ----------- Run | Yrd Mat Min Sub Mat Sto Matter Collected 844 | 207 115 92 156 52 222 Remotely . | . . . . . . Salvage Created 460 | 67 115 25 58 130 65 Parts 43 | 6 12 6 1 15 3 Haulers Intercepted . | . . . . . . Recyclers Shooed 1 | . . . . . 1 Parts Field Recycled . | . . . . . . Retrieved Matter . | . . . . . . Parts Self-Destructed . | . . . . . . Prevented . | . . . . . . Kills | -11 -10 -10 -10 -8 -8 ------- Run | Yrd Mat Min Sub Mat Sto Combat Hostiles Destroyed 13 | . 6 . 1 5 1 Guns 8 | . 6 . 1 . 1 AOE 5 | . . . . 5 . Classes Destroyed 10 | 2 2 . 3 2 1 Worker 4 | . 1 . . 3 . Builder 1 | . . . . . 1 Tunneler 4 | 1 . 1 . 2 . Recycler 1 | 1 . . . . . Drone 1 | . . . 1 . . Watcher 1 | . . . . 1 . Swarmer 10 | . 6 . . 4 . Grunt 2 | . . . . 1 1 Artisan 1 | . . . 1 . . Subdweller 1 | . . . 1 . . Best Kill Streak 5 | 1 3 1 1 5 2 Combat Bots Only 4 | . 3 . 1 4 1 Max Kills in Single Turn 3 | 1 1 1 1 3 1 Gunslinging . | . . . . . . Exploded 2 | . . . . 2 . Melee . | . . . . . . Uniques/NPCs Destroyed . | . . . . . . Combat | -11 -10 -10 -10 -8 -8 -------- Run | Yrd Mat Min Sub Mat Sto Hostile Shots Fired 152 | . 36 1 8 67 40 Missed 54 | . 5 1 4 32 12 Damage Taken 1670 | . 264 10 325 577 494 Core 733 | . 55 10 115 228 325 Absorbed by Shields . | . . . . . . Core Remaining (%) 64 | 100 . . 28 . . Volleys Fired 82 | 3 16 11 23 21 8 Largest 2 | 2 2 1 1 2 2 Hottest 100 | 90 90 100 30 50 85 Shots Fired 109 | 6 32 11 23 25 12 Gun 76 | 6 32 6 4 16 12 Cannon . | . . . . . . Launcher 28 | . . . 19 9 . Special 5 | . . 5 . . . Kinetic 46 | . 12 6 4 16 8 Thermal 35 | 6 20 5 . . 4 Explosive 28 | . . . 19 9 . Electromagnetic . | . . . . . . Robot Hit Streak 7 | 4 5 7 3 3 4 Robot Miss Streak 3 | . 2 1 . 2 3 Penetration Max . | . . . . . . Secondary Targets . | . . . . . . Shots Hit Robots 48 | 4 17 5 3 11 8 Core Hits 47 | 3 9 2 3 23 7 Critical Kills . | . . . . . . Critical Parts Destroyed . | . . . . . . Critical Strikes 2 | . 2 . . . . Burn 2 | . 2 . . . . Melee Attacks . | . . . . . . Impact . | . . . . . . Slashing . | . . . . . . Piercing . | . . . . . . Sneak Attacks . | . . . . . . Combat Hostiles . | . . . . . . Follow-up Attacks . | . . . . . . Damage Inflicted 1538 | 57 201 41 131 979 129 Guns 496 | 57 189 41 26 71 112 Cannons . | . . . . . . Explosions 1013 | . . . 105 908 . Melee . | . . . . . . Ramming 29 | . 12 . . . 17 Kinetic 266 | . 63 41 26 71 65 Thermal 297 | 57 126 . . 67 47 Explosive 946 | . . . 105 841 . Electromagnetic . | . . . . . . Impact . | . . . . . . Slashing . | . . . . . . Piercing . | . . . . . . Highest Corruption 8 | . . . . . 8 Average Corruption 8 | . . . . . 8 Corruption Purged . | . . . . . . Corruption Blocked . | . . . . . . Effects 1 | . . . . . 1 Matter Fused 1 | . . . . . 1 Overload Shots . | . . . . . . Overflow Damage 122 | . . . . 122 . Projectiles . | . . . . . . Explosions 122 | . . . . 122 . Melee . | . . . . . . Knockbacks . | . . . . . . Impact . | . . . . . . Kinetic . | . . . . . . Secondary . | . . . . . . Self-Inflicted Damage 215 | . 6 . 115 86 8 Shots 8 | . . . 6 2 . Rammed 5 | . 1 . . . 4 Targets Rammed 5 | . 1 . . . 4 Kicked . | . . . . . . Crushed . | . . . . . . Highest Temperature 120 | 30 120 18 . 12 82 Average Temperature 29 | 16 42 8 . 4 39 Received Heat Transfer 429 | . . . 24 171 234 Siege Activations . | . . . . . . Robots Corrupted . | . . . . . . Combat Hostiles . | . . . . . . Parts Fried . | . . . . . . Impact Corruptions . | . . . . . . Robots Melted . | . . . . . . Combat Hostiles . | . . . . . . Parts Melted . | . . . . . . Heat Transferred 756 | 161 459 . . 50 86 Parts Sabotaged . | . . . . . . Parts Stolen . | . . . . . . Parts Stripped . | . . . . . . Power Chain Reactions . | . . . . . . Alert | -11 -10 -10 -10 -8 -8 ------- Run | Yrd Mat Min Sub Mat Sto Peak Influence 450 | 10 241 191 . 450 300 Initial 183 | . 6 93 . . 183 Average 98 | 5 97 77 . 92 223 Maximum Alert Level 2 | . 1 . . 2 1 Low Security (%) 87 | 100 89 100 . 86 42 Level 1 10 | . 10 . . 8 57 Level 2 1 | . . . . 5 . Level 3 . | . . . . . . Level 4 . | . . . . . . Level 5 . | . . . . . . High Security . | . . . . . . Max Security . | . . . . . . Squads Dispatched 14 | . 2 . . 6 6 Investigation 3 | . 1 . . 1 1 Extermination . | . . . . . . Reinforcement 7 | . 1 . . 3 3 Assault 2 | . . . . . 2 Garrison 2 | . . . . 2 . Intercept . | . . . . . . Searches Triggered . | . . . . . . Construction Impeded 1 | . . . . . 1 Haulers Reinforced . | . . . . . . Active Scanning Responses . | . . . . . . Cargo Convoy Interrupts . | . . . . . . Stealth | -11 -10 -10 -10 -8 -8 --------- Run | Yrd Mat Min Sub Mat Sto Distress Signals 6 | . 1 . . 3 2 Communications Jammed . | . . . . . . Distress Signals . | . . . . . . Times Spotted 84 | . 10 4 11 37 22 Peak Tracking Total 17 | . 3 3 2 15 17 Tactical Retreats 9 | . 2 1 2 4 . Traps | -11 -10 -10 -10 -8 -8 ------- Run | Yrd Mat Min Sub Mat Sto Traps Triggered 4 | . 1 . 3 . . Indirectly . | . . . . . . Trap Hack Attempts . | . . . . . . Triggered . | . . . . . . Disarmed . | . . . . . . Reprogrammed . | . . . . . . Reused . | . . . . . . Traps Extracted . | . . . . . . Installed . | . . . . . . Triggered . | . . . . . . Machines | -11 -10 -10 -10 -8 -8 ---------- Run | Yrd Mat Min Sub Mat Sto Machines Disabled 3 | . . . . 3 . Max in Single Turn 1 | . . . . 1 . Machines Repaired . | . . . . . . Machines Dismantled . | . . . . . . Machines Sabotaged . | . . . . . . Overloaded Fab Kills . | . . . . . . Hacking | -11 -10 -10 -10 -8 -8 --------- Run | Yrd Mat Min Sub Mat Sto Machines Accessed 7 | . 2 1 1 2 1 Terminals 5 | . 2 . . 2 1 Fabricators . | . . . . . . Repair Stations . | . . . . . . Recycling Units . | . . . . . . Scanalyzers . | . . . . . . Garrison Access . | . . . . . . Total Hacks 19 | . 3 1 9 4 2 Successful 14 | . 1 1 9 3 . Failed 5 | . 2 . . 1 2 Catastrophic 2 | . 1 . . . 1 Database Lockouts . | . . . . . . Manual 2 | . 1 . 1 . . Terminals 9 | . 3 . . 4 2 Fabricators . | . . . . . . Repair Stations . | . . . . . . Recycling Units . | . . . . . . Scanalyzers . | . . . . . . Garrison Access . | . . . . . . Terminal Hacks 14 | . 1 1 9 3 . Record 8 | . . . 8 . . Open Door 1 | . . 1 . . . Recall Reinforcements 1 | . 1 . . . . Hauler Manifests 1 | . . . . 1 . Zone Layout 2 | . . . . 2 . Derelict Proto ID Bank 1 | . . . 1 . . Fabricator Hacks . | . . . . . . Repair Station Hacks . | . . . . . . Recycling Unit Hacks . | . . . . . . Scanalyzer . | . . . . . . Garrison Access Hacks . | . . . . . . Unauthorized Hacks . | . . . . . . Terminals . | . . . . . . Fabricators . | . . . . . . Repair Stations . | . . . . . . Recycling Units . | . . . . . . Scanalyzers . | . . . . . . Garrison Access . | . . . . . . Data Cores Recovered . | . . . . . . Used . | . . . . . . Hacking Detections 3 | . 1 . . 1 1 Full Trace Events 2 | . . . . 1 1 Feedback Events . | . . . . . . Feedback Blocked . | . . . . . . Robot Schematics Acquired . | . . . . . . Robots Built . | . . . . . . Authchips . | . . . . . . Time . | . . . . . . Total Robot Build Rating . | . . . . . . Part Schematics Acquired . | . . . . . . Parts Built . | . . . . . . Authchips . | . . . . . . Time . | . . . . . . Total Part Build Rating . | . . . . . . Parts Repaired . | . . . . . . Time . | . . . . . . Parts Recycled . | . . . . . . Recycled Matter . | . . . . . . Retrieved Matter . | . . . . . . Retrieved Components . | . . . . . . Parts Scanalyzed . | . . . . . . Part Schematics Acquired . | . . . . . . Parts Damaged . | . . . . . . Bothacking | -11 -10 -10 -10 -8 -8 ------------ Run | Yrd Mat Min Sub Mat Sto Used RIF Installer . | . . . . . . Robots Hacked . | . . . . . . Non-combat . | . . . . . . Combat . | . . . . . . Robot Hacks Applied . | . . . . . . Relay Couplers Released . | . . . . . . Fabnet Peak Effective % . | . . . . . . Robots Rewired . | . . . . . . Allies Hacked . | . . . . . . Hacks Repelled . | . . . . . . Allies | -11 -10 -10 -10 -8 -8 -------- Run | Yrd Mat Min Sub Mat Sto Total Allies 4 | . . 2 . . 2 Largest Group 2 | . . 2 2 . 2 Highest-Rated Group 62 | . . 47 47 . 62 Highest-Rated Ally 31 | . . 31 31 . 31 Total Orders 2 | . . . 2 . . RETURN 2 | . . . 2 . . Ally Attacks 61 | . . 9 4 . 48 Total Damage 741 | . . 130 42 . 569 Kills 7 | . . 3 . . 4 Allies Corrupted . | . . . . . . Allies Melted . | . . . . . . Intel | -11 -10 -10 -10 -8 -8 ------- Run | Yrd Mat Min Sub Mat Sto Robot Analysis Total . | . . . . . . Derelict Logs Recovered 4 | . . 2 2 . . Drone Launches 11 | . . . 10 . 1 Drone Recoveries 2 | . . . 2 . . Exploration | -11 -10 -10 -10 -8 -8 ------------- Run | Yrd Mat Min Sub Mat Sto Turns Passed 2648 | 72 339 550 982 536 169 Spaces Moved 3427 | 41 295 710 1630 614 137 Core 56 | 12 . . . . 44 Treads . | . . . . . . Legs 50 | 29 21 . . . . Wheels 178 | . 178 . . . . Hover 164 | . . . . 71 93 Flight 2979 | . 96 710 1630 543 . Fastest Speed 34 | 50 37 37 37 34 50 Average Speed 46 | 99 74 37 47 37 60 Slowest Speed 120 | 120 120 117 117 60 120 Overloaded Moves . | . . . . . . Propulsion Burnouts . | . . . . . . Robots Hopped 11 | . 2 1 . 8 . Cave-ins Triggered . | . . . . . . Exploration Rate (%) 48 | 4 52 87 65 63 18 Regions Visited 5 Branch Regions 3 Pre-discovered Areas 2 | . . 1 1 . . Known Exits Taken . | . . . . . . Unknown Exits Taken 5 | 1 1 1 1 1 . Scrap Searched 1 | . . 1 . . . Spaces Dug 113 | . . . 113 . . Terrain Destroyed 247 | . . . 174 73 . Melee . | . . . . . . Projectile . | . . . . . . AOE 247 | . . . 174 73 . Terrain Rammed . | . . . . . . Walls Destroyed . | . . . . . . Machines Disabled . | . . . . . . Actions | -11 -10 -10 -10 -8 -8 --------- Run | Yrd Mat Min Sub Mat Sto Total 4345 | 66 383 979 1818 887 212 Wait 735 | 6 43 234 154 242 56 Move 3400 | 40 290 707 1629 597 137 Hop 11 | . 2 1 . 8 . Pick Up 43 | 10 11 13 3 5 1 Fast Attach 4 | . 1 . . 2 1 Attach 27 | 7 2 4 3 8 3 Detach 6 | . 1 . 1 3 1 Swap 9 | . 5 1 1 1 1 Drop 23 | . 11 8 4 . . Fire 82 | 3 16 11 23 21 8 Melee . | . . . . . . Ram 5 | . 1 . . . 4 Kick . | . . . . . . Crush . | . . . . . . Escape Stasis . | . . . . . . Rewire . | . . . . . . Trap . | . . . . . . Miscellaneous . | . . . . . . Route ------- -11/Scrapyard -10/Materials (discovered 2 exits: [*Mat] / *Min) -10/Mines -10/Subcaves -8/Materials (discovered 3 exits: Fac x2 / *Sto) -8/Storage History --------- Turn | Location | Event 5 | -11/Scrapyard | Discovered new exit (range 15) 73 | -11/Scrapyard | Entered Materials 318 | -10/Materials | Build established: Mutant 381 | -10/Materials | Discovered new exit (range 8) 407 | -10/Materials | Discovered new exit (range 14) 412 | -10/Materials | Entered Mines 512 | -10/Mines | Discovered new exit (range 3) 587 | -10/Mines | Found the Drone Emporium 590 | -10/Mines | Found Prototype Device 593 | -10/Mines | Identified Decoy Drone Bay 642 | -10/Mines | Build established: Scavenger-Mutant 709 | -10/Mines | Learned location of 2 exits from Materials 734 | -10/Mines | Learned Materials stockpile data 739 | -10/Mines | Learned location of Storage (-8) 962 | -10/Mines | Entered Subcaves 962 | -10/Subcaves | Accompanied by 2 allies 967 | -10/Subcaves | Led the pair of lost Derelicts to an unsafe place 970 | -10/Subcaves | Learned Materials terminal intel 1028 | -10/Subcaves | Ambushed by swarm of Subdwellers 1051 | -10/Subcaves | Learned Materials trap positions 1107 | -10/Subcaves | Lost 3 parts (1n1u1w) 1331 | -10/Subcaves | Ambushed by Subdweller buried in earth 1344 | -10/Subcaves | Shifting Twisted Machinery released Sub. Machine Gun 1386 | -10/Subcaves | Build established: Mutant 1518 | -10/Subcaves | Core integrity fell below 50% 1557 | -10/Subcaves | Visited 4L-MR0's lab 1802 | -10/Subcaves | Shifting Twisted Machinery released Battle Cannon 1823 | -10/Subcaves | Shifting Twisted Machinery released Battle Rifle 1931 | -10/Subcaves | Discovered new exit (range 8) 1932 | -10/Subcaves | Learned location of Zion (-7) 1932 | -10/Subcaves | Met a Zionite searching for "candidates" 1944 | -10/Subcaves | Entered Materials 1944 | -8/Materials | Evolved 4 slots: Propulsion x2, Utility x2 1945 | -8/Materials | Identified exit to Factory 1946 | -8/Materials | Loaded intel: 26 trap records 1948 | -8/Materials | Loaded intel: 12 terminal locations 2237 | -8/Materials | Build established: Scavenger-Mutant 2371 | -8/Materials | Garrison activated, responded to threat 2473 | -8/Materials | Discovered new exit (range 11) 2480 | -8/Materials | Entered Storage 2500 | -8/Storage | Met a pair of Derelict thieves 2510 | -8/Storage | Lost 5 parts (1p2n2w) 2625 | -8/Storage | Core integrity fell below 50% 2642 | -8/Storage | Core integrity fell below 20% 2649 | -8/Storage | Destroyed by G-50 Soldier with Heavy Laser Last Messages --------------- 02625_ Acquired 16 matter. 02626_ Slammed into B-36 Bruiser. 02626_ Particle Gun destroyed. 02627_ Slammed into B-36 Bruiser. 02627_ Com. Battery destroyed. 02627_ Visual Processing Unit destroyed. 02627_ Weight Redist. System destroyed. 02627_ System corrupted by crushing effect (+5). 02627_ System corrupted by crushing effect (+3). 02628_ Acquired 44 matter. 02631_ M-28 Smith repairs G-47 Trooper. 02632_ Acquired 33 matter. 02632_ R-06 Scavenger destroyed. 02633_ Slammed into O-24 Administrator. 02634_ O-24 Administrator sends out distress signal. 02634_ Slammed into R-06 Scavenger. 02635_ M-28 Smith repairs I-25 Savior. 02641_ System corrupted: Matter fused (-6). 02648_ Slug penetrates G-47 Trooper. Map ----- +----------------------------------------------------+ | | | ???????????????????????????????????????????? | | ???????????????????????????????????????????? | | ???????????????????????????????????????????? | | ???????????????????????????????????????????? | | ???????????????????????????????????????????? | | ???????????????????????????????????????????? | | ???????????????????????????????????????????? | | ???????????????????????????????????????????? | | ???????????????????????????????????????????? | | ???????????????????????????????????????????? | | ???????????????????????????????????????????? | | ???????????????????????????????????????????? | | ???????????????????????????????????????????? | | ???????????????????????????????????????????? | | ???????????""""????????????????????????????? | | ???????????# #????????????????????????????? | | ???????????T #????????????????????????????? | | ???????????# #????????????????????????????? | | ???????????# #????????????????????????????? | | ???????????/ #???????#????????????????????? | | ???????????# #?????? #????????????????????? | | ???????????# #?????? #????????????????????? | | ???????????# #????? #????????????????????? | | ???????????# #???## ##???????????????????? | | ???????????# #####@ #???????????????????? | | ???????????# #???????????????????? | | ???????????# ghggT +???????????????????? | | ?????????###+###/## #???????????????????? | | ?????????# g ##g ##???????????????????? | | ?????????# """ #? #????????????????????? | | ?????????# """ ## ######???????????????? | | ?????????# """ + ????????? | | ?????????# """ ## ????????? | | ?????????# """ #?##+#########???????????? | | ?????????# #????????????????????????? | | ?????????# [ #????????????????????????? | | ?????????# %#????????????????????????? | | ?????????##""T""#/#????????????????????????? | | ??????????#"""""#%#????????????????????????? | | ??????????#######"#????????????????????????? | | ????????????????#%#????????????????????????? | | ??????????????###%###??????????????????????? | | ??????????????# =!% #??????????????????????? | | ??????????????# == #??????????????????????? | | ??????????????+ ! #??????????????????????? | | ??????????????# #??????????????????????? | | ??????????????# #??????????????????????? | | ??????????????## % ##??????????????????????? | | ???????????????# #???????????????????????? | +----------------------------------------------------+ Best States ------------- Heat Dissipation 31 Energy Generation 14 Energy Capacity 300 Matter Stores 300 Matter Capacity 300 Sight Range 18 Terrain Scan Density 10 ECM Strength 1 Additional Mass Support 6 Armor Coverage 150 Evasion (%) 63 Item Schematics ----------------- None Robot Schematics ------------------ None Fabricated ------------ Nothing Alien Tech Used ----------------- None Achievements -------------- None Challenges ------------ None Game ------ Seed GrapheneTitaniumWings Manual? 0 Play Time 01:25:13 Cumulative 49.0 hours Start 2025.02.28 @ 16:52:17 End 2025.02.28 @ 18:23:26 Sessions 1 Manual Loads 0 Difficulty Rogue Special Mode None Game No. 29 Rogue 29 Adventurer 0 Explorer 0 Win Type - Total 0 Types 0/0/0/0/0/0/0/0/0 Lore% 13 Gallery% 23 Achievement% 21 Wizard Run 0 Options --------- Layout 2 ASCII 1 Keyboard 0 Movement Mouse Keybinds 0 Fullscreen 1 Font 24/Smallcaps Map View 50x44 Zoom Use 0% Tactical HUD 1 Map Filters NONE Filters NONE Steam 1 RUN: e70c0650-b89f-4b9e-bc03-1fe04e1a5e34